bitfinex-derivatives/quotes_SOLF0:USTF0_20250614
["timestamp","ask_amount","ask_price","bid_price","bid_amount"]
[1749910578443,0.04475225,145.41,145.38,0.05001862]
[1749910578740,0.04475225,145.41,145.39,6.8746]
[1749910582944,0.04475225,145.41,145.4,6.8744]
[1749910583749,9.82475225,145.41,145.4,6.8744]
[1749910584845,9.82475225,145.41,145.39,6.8747]
[1749910585052,9.82475225,145.41,145.38,7.42411003]
[1749910585452,9.82475225,145.41,145.4,6.8744]
[1749910588552,9.82475225,145.41,145.38,6.92521862]
[1749910589651,16.69895225,145.41,145.38,6.92521862]
[1749910590156,9.82475225,145.41,145.39,6.8748]
[1749910590453,9.82475225,145.41,145.38,0.05001862]
[1749910590654,9.82475225,145.41,145.39,6.8749]
[1749910592261,16.69875225,145.41,145.38,6.92511862]
[1749910592453,16.69875225,145.41,145.38,0.05001862]
[1749910592454,9.82475225,145.41,145.38,0.05001862]
[1749910594257,15.01974366,145.41,145.38,0.05001862]
[1749910594559,5.19499141,145.39,145.34,33.8]
[1749910595754,6.8761,145.37,145.35,0.0458236]
[1749910597356,6.92365259,145.38,145.35,6.9223236]
[1749910597553,0.04815259,145.38,145.35,0.0458236]
[1749910597861,0.04815259,145.38,145.36,6.8761]
[1749910598660,0.04815259,145.38,145.37,6.8758]
[1749910603468,4.6064,145.43,145.4,6.8744]
[1749910604059,11.4797,145.43,145.4,6.8744]
[1749910604359,9.2439,145.43,145.4,6.8744]
[1749910604554,9.29609564,145.43,145.4,0.0521797]
[1749910605064,6.8735,145.42,145.4,0.0521797]
[1749910606666,10.89,145.41,145.4,0.0521797]
[1749910608069,10.89,145.41,145.4,6.9265797]
[1749910609973,10.89,145.41,145.4,0.0521797]
[1749910619879,10.89,145.41,145.4,6.9265797]
[1749910621682,10.89,145.41,145.4,12.12157111]
[1749910621983,7.38479141,145.49,145.4,13.78117149]
[1749910622187,9.66719141,145.49,145.4,13.78117149]
[1749910622579,7.45099141,145.47,145.4,8.58618008]
[1749910622780,5.24210038,145.45,145.4,0.0521797]
[1749910623082,5.19499141,145.43,145.4,0.0521797]
[1749910623283,6.8739,145.41,145.4,0.0521797]
[1749910624377,0.05207987,145.42,145.4,0.0521797]
[1749910624884,0.05207987,145.42,145.41,6.8739]
[1749910625282,0.05207987,145.42,145.41,12.06889141]
[1749910625487,6.8713,145.47,145.43,6.873]
[1749910625785,6.8713,145.47,145.43,40.673]
[1749910626385,0.04371259,145.46,145.44,0.05079929]
[1749910627384,0.04371259,145.46,145.44,6.92309929]
[1749910627584,0.04371259,145.46,145.44,0.05079929]
[1749910628786,0.04371259,145.46,145.45,6.8721]
[1749910629484,0.04371259,145.46,145.44,6.92309929]
[1749910630185,0.04371259,145.46,145.44,0.05079929]
[1749910630685,0.04371259,145.46,145.44,6.92299929]
[1749910635497,6.91531259,145.46,145.44,0.05079929]
[1749910635792,0.04371259,145.46,145.44,0.05079929]
[1749910636594,0.04371259,145.46,145.43,33.8]
[1749910636794,5.19499141,145.45,145.4,33.8]
[1749910637094,6.8736,145.42,145.4,40.6741]
[1749910637294,5.19499141,145.45,145.4,40.6741]
[1749910637496,5.19499141,145.45,145.4,33.8]
[1749910637694,6.92508417,145.44,145.41,6.92602733]
[1749910639294,6.92508417,145.44,145.41,0.05232733]
[1749910639798,6.8732,145.43,145.41,0.05232733]
[1749910640596,0.05228417,145.44,145.41,0.05232733]
[1749910641299,6.8733,145.43,145.41,0.05232733]
[1749910643702,6.92498417,145.44,145.41,0.05232733]
[1749910645502,6.873,145.43,145.41,0.05232733]
[1749910647206,6.92498417,145.44,145.41,0.05232733]
[1749910648601,6.92498417,145.44,145.41,6.92622733]
[1749910648805,0.05228417,145.44,145.41,5.24731874]
[1749910649004,0.05228417,145.44,145.41,13.78131912]
[1749910649307,0.05228417,145.44,145.43,6.873]
[1749910649707,0.05228417,145.44,145.43,12.06799141]
[1749910650504,0.05228417,145.44,145.43,20.60199179]
[1749910654005,0.05228417,145.44,145.43,12.06799141]
[1749910654208,0.05228417,145.44,145.43,20.60199179]
[1749910654507,0.05228417,145.44,145.43,12.06799141]
[1749910656810,7.56399141,145.53,145.43,152.52899179]
[1749910657117,7.56399141,145.53,145.47,5.19499141]
[1749910657118,2.369,145.53,145.47,5.19499141]
[1749910657318,6.8686,145.53,145.49,6.8699]
[1749910657826,0.04401119,145.52,145.5,0.04769532]
[1749910658324,0.04401119,145.52,145.5,6.91739532]
[1749910660219,0.04401119,145.52,145.5,0.04769532]
[1749910663417,0.04401119,145.52,145.5,6.91729532]
[1749910663818,0.04401119,145.52,145.5,0.04769532]
[1749910664429,0.04401119,145.52,145.51,6.8692]
[1749910665125,0.04401119,145.52,145.5,6.91709532]
[1749910667733,0.04401119,145.52,145.5,0.04769532]
[1749910668535,6.8692,145.51,145.5,0.04769532]
[1749910671733,6.91301119,145.52,145.5,0.04769532]
[1749910671929,0.04401119,145.52,145.5,0.04769532]
[1749910672331,0.04401119,145.52,145.5,6.91699532]
[1749910672836,0.04401119,145.52,145.5,0.04769532]
[1749910674436,6.91281119,145.52,145.5,0.04769532]
[1749910674837,0.04401119,145.52,145.5,0.04769532]
[1749910677243,0.04401119,145.52,145.5,6.91739532]
[1749910677431,0.04401119,145.52,145.5,0.04769532]
[1749910679445,0.04401119,145.52,145.5,6.91729532]
[1749910682142,6.8518,145.56,145.5,0.04769532]
[1749910682440,4.5366,145.56,145.5,0.04769532]
[1749910682641,6.8681,145.54,145.51,6.8691]
[1749910682941,4.5366,145.56,145.52,33.78]
[1749910683336,6.9205056,145.55,145.53,0.05056203]
[1749910684444,0.0530056,145.55,145.53,0.05056203]
[1749910685243,20.2706056,145.55,145.53,0.05056203]
[1749910685845,6.8678,145.54,145.53,0.05056203]
[1749910686042,18.59799701,145.55,145.49,33.78]
[1749910686238,5.19499141,145.53,145.49,33.78]
[1749910686439,6.8697,145.5,145.49,33.78]
[1749910687148,6.8702,145.49,145.48,0.04708006]
[1749910687438,5.19499141,145.49,145.46,33.78]
[1749910687642,5.19499141,145.47,145.43,33.78]
[1749910688445,0.05301424,145.46,145.44,0.04893836]
[1749910688949,6.8725,145.45,145.44,0.04893836]
[1749910689245,0.05301424,145.46,145.44,0.04893836]
[1749910689645,6.92481424,145.46,145.44,0.04893836]
[1749910691054,6.8721,145.45,145.44,0.04893836]
[1749910700553,6.92471424,145.46,145.44,0.04893836]
[1749910700752,0.05301424,145.46,145.44,0.04893836]
[1749910701655,6.8721,145.45,145.44,0.04893836]
[1749910706556,6.92481424,145.46,145.44,0.04893836]
[1749910706759,0.05301424,145.46,145.44,0.04893836]
[1749910707466,0.05301424,145.46,145.44,6.92143836]
[1749910707763,0.05301424,145.46,145.44,0.04893836]
[1749910708267,6.92501424,145.46,145.44,0.04893836]
[1749910711660,6.8721,145.45,145.44,0.04893836]
[1749910715175,6.92471424,145.46,145.44,0.04893836]
[1749910715575,0.05301424,145.46,145.44,0.04893836]
[1749910716069,0.05301424,145.46,145.45,6.8721]
[1749910717376,0.05301424,145.46,145.44,6.92123836]
[1749910718875,0.05301424,145.46,145.44,0.04893836]
[1749910719073,0.05301424,145.46,145.45,6.8721]
[1749910719883,0.05301424,145.46,145.44,6.92133836]
[1749910720382,0.05301424,145.46,145.44,0.04893836]
[1749910721784,0.05301424,145.46,145.45,6.8721]
[1749910722590,0.05301424,145.46,145.44,0.04893836]
[1749910722892,5.19499141,145.45,145.44,0.04893836]
[1749910723084,12.06709141,145.45,145.44,0.04893836]
[1749910729394,6.873,145.43,145.42,33.78]
[1749910731491,2.36281424,145.46,145.42,33.78]
[1749910731788,0.05301424,145.46,145.42,42.31572263]
[1749910731994,0.05301424,145.46,145.44,6.8723]
[1749910733089,6.92481424,145.46,145.43,6.8728]
[1749910736294,0.05301424,145.46,145.43,6.8728]
[1749910739194,0.05301424,145.46,145.44,6.8724]
[1749910739586,0.05301424,145.46,145.43,5.19499141]
[1749910739783,6.8694,145.51,145.45,5.19499141]
[1749910739987,38.97499141,145.54,145.47,5.19499141]
[1749910740188,5.45090615,145.53,145.47,5.19499141]
[1749910740388,6.8685,145.53,145.49,6.87]
[1749910740592,5.19499141,145.54,145.49,6.87]
[1749910740786,5.19499141,145.54,145.47,5.19499141]
[1749910740787,5.45051946,145.53,145.47,5.19499141]
[1749910740986,6.91261905,145.52,145.49,0.04712809]
[1749910741394,0.04381905,145.52,145.49,0.04712809]
[1749910741596,0.04381905,145.52,145.49,6.91722809]
[1749910742184,0.04381905,145.52,145.5,33.78]
[1749910742388,0.04381905,145.52,145.5,40.6496]
[1749910742694,0.04381905,145.52,145.5,33.78]
[1749910743283,0.04381905,145.52,145.51,6.8692]
[1749910747998,0.04381905,145.52,145.51,12.06419141]
[1749910748203,6.8666,145.57,145.53,6.868]
[1749910748396,6.8666,145.57,145.54,33.78]
[1749910749196,12.85,145.56,145.54,33.83022124]
[1749910750904,12.85,145.56,145.54,40.69782124]
[1749910751199,12.85,145.56,145.54,33.83022124]
[1749910751502,12.85,145.56,145.5,33.78]
[1749910751503,18.04499141,145.56,145.5,33.78]
[1749910751695,2.3456,145.55,145.5,33.78]
[1749910751891,6.8685,145.53,145.5,40.6497]
[1749910752097,2.3456,145.55,145.5,40.6497]
[1749910752600,6.91494673,145.54,145.51,6.92070681]
[1749910752797,0.04684673,145.54,145.51,6.92070681]
[1749910754905,6.91464673,145.54,145.51,6.92070681]
[1749910755405,0.04684673,145.54,145.51,6.92070681]
[1749910758608,0.04684673,145.54,145.52,6.8685]
[1749910759308,6.91494673,145.54,145.51,0.05150681]
[1749910759500,0.04684673,145.54,145.51,0.05150681]
[1749910760709,0.04684673,145.54,145.51,6.92040681]
[1749910760898,0.04684673,145.54,145.51,0.05150681]
[1749910761400,0.04684673,145.54,145.51,5.24649822]
[1749910762294,0.04684673,145.54,145.52,6.8684]
[1749910763708,0.04684673,145.54,145.51,12.11549822]
[1749910763905,0.04684673,145.54,145.51,6.92050681]
[1749910764108,0.04684673,145.54,145.51,0.05150681]
[1749910765212,0.04684673,145.54,145.52,6.8683]
[1749910765709,0.04684673,145.54,145.51,0.05150681]
[1749910765904,6.8686,145.53,145.51,33.85150681]
[1749910767513,0.04684673,145.54,145.51,40.72070681]
[1749910768406,0.04684673,145.54,145.52,6.8686]
[1749910780923,0.04684673,145.54,145.53,6.8683]
[1749910782126,2.2339,145.59,145.55,6.867]
[1749910782530,6.866,145.58,145.55,6.867]
[1749910782932,11.64,145.57,145.55,6.867]
[1749910783125,11.68838886,145.57,145.55,0.045393]
[1749910783325,18.55488886,145.57,145.55,0.045393]
[1749910783527,11.68838886,145.57,145.55,0.045393]
[1749910784127,6.8669,145.56,145.55,0.045393]
[1749910785535,6.8682,145.54,145.51,33.8]
[1749910786531,6.91650063,145.54,145.51,33.85297738]
[1749910786731,6.8685,145.53,145.51,33.85297738]
[1749910787226,6.91640063,145.54,145.51,33.85297738]
[1749910787533,6.91640063,145.54,145.51,40.72207738]
[1749910787731,6.91640063,145.54,145.51,33.85297738]
[1749910788030,6.8684,145.53,145.51,33.85297738]
[1749910789435,6.8684,145.53,145.51,40.72217738]
[1749910789829,6.8684,145.53,145.51,33.85297738]
[1749910790136,0.04830063,145.54,145.51,33.85297738]
[1749910790535,6.8687,145.53,145.51,33.85297738]
[1749910791434,6.8688,145.52,145.51,33.85297738]
[1749910791824,6.8688,145.52,145.51,0.05297738]
[1749910795438,11.63864652,145.52,145.51,0.05297738]
[1749910795627,6.8688,145.52,145.51,0.05297738]
[1749910798734,6.8685,145.53,145.51,0.05297738]
[1749910799234,0.04830063,145.54,145.51,0.05297738]
[1749910799631,0.04830063,145.54,145.52,40.6686]
[1749910800933,6.91620063,145.54,145.52,33.8]
[1749910804345,0.04830063,145.54,145.52,33.8]
[1749910805142,0.04830063,145.54,145.53,6.8683]
[1749910812841,11.64,145.57,145.56,6.8669]
[1749910813240,11.64,145.57,145.56,40.6669]
[1749910818648,8.52054192,145.68,145.56,40.6669]
[1749910818649,6.8641,145.62,145.56,33.8]
[1749910818845,6.8641,145.62,145.57,5.19499141]
[1749910819444,6.8641,145.62,145.59,6.8654]
[1749910819643,6.91259957,145.62,145.59,0.04365524]
[1749910820844,6.91259957,145.62,145.59,6.90905524]
[1749910823147,0.04849957,145.62,145.59,6.90905524]
[1749910826548,0.04849957,145.62,145.59,0.04365524]
[1749910827155,6.865,145.6,145.59,0.04365524]
[1749910828152,0.04849957,145.62,145.59,0.04365524]
[1749910828544,6.91279957,145.62,145.59,0.04365524]
[1749910830861,6.91279957,145.62,145.59,6.90905524]
[1749910831845,6.91279957,145.62,145.59,0.04365524]
[1749910832556,6.91279957,145.62,145.59,6.90905524]
[1749910834961,6.91279957,145.62,145.59,0.04365524]
[1749910840163,0.04849957,145.62,145.59,0.04365524]
[1749910840364,5.19499141,145.61,145.59,0.04365524]
[1749910840569,38.95499141,145.61,145.53,33.76]
[1749910840768,5.19499141,145.57,145.53,33.76]
[1749910840962,6.867,145.56,145.53,33.76]
[1749910841464,10.23703678,145.56,145.53,40.68051957]
[1749910842268,6.8674,145.55,145.53,33.81241957]
[1749910843660,6.8674,145.55,145.53,40.68071957]
[1749910846369,6.8674,145.55,145.53,33.81241957]
[1749910852775,0.05275311,145.56,145.53,33.81241957]
[1749910852971,5.18329727,145.54,145.49,33.76]
[1749910853273,12.95275311,145.56,145.49,33.76]
[1749910853274,5.18329727,145.52,145.49,33.76]
[1749910854078,6.8692,145.51,145.49,33.80677951]
[1749910854272,5.2296156,145.52,145.49,33.80677951]
[1749910854671,6.8696,145.51,145.49,33.80677951]
[1749910855280,6.91521833,145.52,145.49,40.67687951]
[1749910855486,0.04631833,145.52,145.5,5.18329727]
[1749910856782,0.04631833,145.52,145.51,6.8692]
[1749910859473,12.9,145.56,145.53,6.8679]
[1749910859781,12.9,145.56,145.53,40.6279]
[1749910860577,12.95063131,145.56,145.53,40.67141072]
[1749910861277,12.95063131,145.56,145.53,33.80351072]
[1749910861982,6.8676,145.55,145.53,33.80351072]
[1749910862783,19.81763131,145.56,145.53,33.80351072]
[1749910862985,12.95063131,145.56,145.53,33.80351072]
[1749910863384,12.95063131,145.56,145.53,40.67151072]
[1749910864672,19.81753131,145.56,145.53,40.67151072]
[1749910866282,19.81753131,145.56,145.53,33.80351072]
[1749910866583,6.8673,145.55,145.53,33.80351072]
[1749910866788,12.95063131,145.56,145.53,33.80351072]
[1749910867089,19.81783131,145.56,145.53,33.80351072]
[1749910867584,19.81783131,145.56,145.53,40.67171072]
[1749910867983,12.95063131,145.56,145.53,33.80351072]
[1749910868780,19.81753131,145.56,145.53,40.67151072]
[1749910868981,6.91753131,145.56,145.53,40.67151072]
[1749910870690,0.05063131,145.56,145.53,33.80351072]
[1749910871786,0.05063131,145.56,145.54,6.8676]
[1749910873789,0.05063131,145.56,145.53,40.67161072]
[1749910874390,6.91783131,145.56,145.53,40.67161072]
[1749910874589,0.05063131,145.56,145.54,6.8675]
[1749910875590,6.91753131,145.56,145.54,6.8675]
[1749910876388,6.8674,145.55,145.53,40.67161072]
[1749910877190,6.91773131,145.56,145.53,40.67161072]
[1749910880092,6.91773131,145.56,145.53,33.80351072]
[1749910880093,6.8674,145.55,145.53,33.80351072]
[1749910881493,6.8678,145.54,145.53,33.80351072]
[1749910881692,0.05063131,145.56,145.53,33.80351072]
[1749910882190,6.91773131,145.56,145.53,40.67151072]
[1749910882389,0.05063131,145.56,145.54,5.18329727]
[1749910883295,0.05063131,145.56,145.55,6.8673]
[1749910898207,0.05063131,145.56,145.55,138.6473]
[1749910898407,6.8653,145.6,145.57,6.8662]
[1749910898802,6.8653,145.6,145.57,40.6262]
[1749910899410,6.91760651,145.6,145.57,40.67153275]
[1749910900005,0.05230651,145.6,145.57,33.80533275]
[1749910901502,0.05230651,145.6,145.58,6.8657]
[1749910903211,6.91730651,145.6,145.58,6.8657]
[1749910903410,10.54,145.59,145.57,33.80533275]
[1749910903806,15.0351,145.59,145.57,33.80533275]
[1749910904002,6.8659,145.58,145.57,0.04533275]
[1749910904312,5.18329727,145.58,145.54,33.76]
[1749910904713,6.8672,145.56,145.54,33.76]
[1749910905111,6.91362719,145.56,145.54,33.80812879]
[1749910905309,0.04642719,145.56,145.54,33.80812879]
[1749910905510,6.8673,145.55,145.54,33.80812879]
[1749910909615,0.04642719,145.56,145.54,33.80812879]
[1749910911713,0.04642719,145.56,145.55,6.8673]
[1749910912916,0.04642719,145.56,145.54,40.67572879]
[1749910913218,0.04642719,145.56,145.54,33.80812879]
[1749910913610,0.04642719,145.56,145.55,6.8673]
[1749910916821,0.04642719,145.56,145.54,40.67562879]
[1749910917823,0.04642719,145.56,145.54,33.80812879]
[1749910918321,6.91332719,145.56,145.54,33.80812879]
[1749910918524,0.04642719,145.56,145.54,40.67592879]
[1749910919421,0.04642719,145.56,145.54,33.80812879]
[1749910919920,0.04642719,145.56,145.55,6.8673]
[1749910922921,0.04642719,145.56,145.54,172.45572879]
[1749910923627,0.04642719,145.56,145.54,33.80812879]
[1749910924832,6.91352719,145.56,145.54,33.80812879]
[1749910928229,6.91352719,145.56,145.54,40.67592879]
[1749910928729,6.91352719,145.56,145.54,33.80812879]
[1749910929237,6.8673,145.55,145.54,33.80812879]
[1749910935230,6.8673,145.55,145.54,0.04812879]
[1749910935429,6.8673,145.55,145.48,33.76]
[1749910935430,5.18633891,145.55,145.48,33.76]
[1749910935939,6.8696,145.51,145.48,40.6304]
[1749910936543,6.91617071,145.51,145.48,40.67387276]
[1749910936841,6.8698,145.5,145.48,33.80347276]
[1749910937042,0.04657071,145.51,145.48,33.80347276]
[1749910937240,5.18633891,145.5,145.48,0.04347276]
[1749910937438,6.8716,145.46,145.45,33.76]
[1749910938635,6.92161853,145.47,145.45,33.76]
[1749910942035,0.05031853,145.47,145.45,40.632]
[1749910943250,6.92171853,145.47,145.45,33.76]
[1749910944147,0.05031853,145.47,145.45,33.76]
[1749910944637,0.05031853,145.47,145.45,40.632]
[1749910944837,0.05031853,145.47,145.45,33.76]
[1749910945151,6.92151853,145.47,145.45,33.76]
[1749910946946,0.05031853,145.47,145.45,40.632]
[1749910947653,6.92151853,145.47,145.45,33.76]
[1749910948151,0.05031853,145.47,145.45,40.632]
[1749910949451,6.92151853,145.47,145.45,33.76]
[1749910949954,6.8716,145.46,145.45,33.76]
[1749910950254,0.05031853,145.47,145.45,33.76]
[1749910951952,6.8716,145.46,145.45,33.76]
[1749910952164,5.18633891,145.46,145.44,0.04399589]
[1749910952554,6.8721,145.45,145.44,0.04399589]
[1749910955161,6.8717,145.46,145.44,0.04399589]
[1749910955457,0.05031853,145.47,145.44,0.04399589]
[1749910955661,0.05031853,145.47,145.44,5.2303348]
[1749910956057,0.05031853,145.47,145.45,132.06]
[1749910956262,0.05031853,145.47,145.46,40.6516]
[1749910956962,0.05031853,145.47,145.46,33.78]
[1749910958267,6.92141853,145.47,145.46,33.78]
[1749910961864,0.05031853,145.47,145.46,33.78]
[1749910964769,6.92141853,145.47,145.46,33.78]
[1749910965468,0.05031853,145.47,145.46,40.6516]
[1749910970782,0.05031853,145.47,145.46,33.78]
[1749910972277,0.05031853,145.47,145.46,40.6516]
[1749910977296,14.09031853,145.47,145.46,40.6516]
[1749910977491,14.09031853,145.47,145.46,33.78]
[1749910978593,14.09031853,145.47,145.46,40.6516]
[1749910980697,14.09031853,145.47,145.46,33.78]
[1749910981699,14.09031853,145.47,145.46,40.6516]
[1749910983900,14.09031853,145.47,145.46,33.78]
[1749910984505,20.96141853,145.47,145.46,33.78]
[1749910984693,14.09031853,145.47,145.44,8.58748511]
[1749910985000,6.8719,145.46,145.44,0.04399589]
[1749910991312,20.96161853,145.47,145.44,6.91649589]
[1749910991603,14.09031853,145.47,145.44,0.04399589]
[1749910991792,20.96171853,145.47,145.44,6.91639589]
[1749910992804,6.8716,145.46,145.44,0.04399589]
[1749910993700,20.96161853,145.47,145.44,6.91649589]
[1749910996903,6.8716,145.46,145.44,6.91649589]
[1749910997708,6.8721,145.45,145.44,0.04399589]
[1749910997909,14.09031853,145.47,145.44,0.04399589]
[1749910998301,6.8718,145.46,145.44,0.04399589]
[1749911001606,14.09031853,145.47,145.44,0.04399589]
[1749911001811,14.09031853,145.47,145.44,5.2303348]
[1749911001998,14.09031853,145.47,145.44,13.77382402]
[1749911002609,14.09031853,145.47,145.45,8.54348922]
[1749911002809,14.09031853,145.47,145.46,6.8716]
[1749911012415,14.09031853,145.47,145.45,15.41548922]
[1749911012617,14.09031853,145.47,145.44,18.0989974]
[1749911012618,14.09031853,145.47,145.44,8.58748511]
[1749911012815,14.09031853,145.47,145.44,0.04399589]
[1749911013514,20.96151853,145.47,145.44,6.91629589]
[1749911014119,6.8716,145.46,145.44,0.04399589]
[1749911014319,14.09031853,145.47,145.44,0.04399589]
[1749911015818,14.09031853,145.47,145.44,6.91629589]
[1749911017924,20.96161853,145.47,145.44,0.04399589]
[1749911018424,20.96161853,145.47,145.44,6.91649589]
[1749911019023,14.09031853,145.47,145.44,6.91649589]
[1749911019415,14.09031853,145.47,145.45,6.8719]
[1749911020822,14.09031853,145.47,145.46,6.8716]
[1749911030236,14.09031853,145.47,145.45,15.41538922]
[1749911030423,14.09031853,145.47,145.44,0.04399589]
[1749911030624,0.05031853,145.47,145.44,0.04399589]
[1749911030925,6.92161853,145.47,145.44,0.04399589]
[1749911031318,0.05031853,145.47,145.44,0.04399589]
[1749911031834,0.05031853,145.47,145.44,8.58748511]
[1749911032726,0.05031853,145.47,145.44,13.77382402]
[1749911033225,0.05031853,145.47,145.46,6.8716]
[1749911033821,0.05031853,145.47,145.46,15.41508922]
[1749911037138,0.05031853,145.47,145.46,49.17508922]
[1749911041035,0.05031853,145.47,145.46,42.30348922]
[1749911041232,0.05031853,145.47,145.46,33.76]
[1749911043241,0.05031853,145.47,145.46,40.6316]
[1749911046344,0.05031853,145.47,145.46,33.76]
[1749911048847,6.92141853,145.47,145.46,33.76]
[1749911049941,6.8717,145.46,145.44,0.04399589]
[1749911050840,6.8717,145.46,145.44,6.91649589]
[1749911051348,0.05031853,145.47,145.44,0.04399589]
[1749911052145,6.8718,145.46,145.44,0.04399589]
[1749911052652,6.8718,145.46,145.44,6.91649589]
[1749911052843,6.92161853,145.47,145.44,6.91649589]
[1749911053049,0.05031853,145.47,145.44,8.58748511]
[1749911053347,0.05031853,145.47,145.45,5.18633891]
[1749911053547,0.05031853,145.47,145.46,6.8716]
[1749911062557,0.05031853,145.47,145.46,40.6316]
[1749911066172,0.05031853,145.47,145.46,172.4716]
[1749911067463,0.05031853,145.47,145.46,165.6]
[1749911067960,12.66031853,145.47,145.46,165.6]
[1749911068861,12.66031853,145.47,145.46,33.76]
[1749911073164,12.66031853,145.47,145.46,40.6316]
[1749911073765,1.90073019,145.47,145.46,54.36322112]
[1749911073965,33.76,145.56,145.5,6.8694]
[1749911073966,38.3874,145.56,145.5,6.8694]
[1749911074163,9.1715,145.54,145.5,40.6294]
[1749911074765,0.05255113,145.53,145.51,0.04626985]
[1749911075269,0.05255113,145.53,145.51,6.91546985]
[1749911076676,0.05255113,145.53,145.51,0.04626985]
[1749911079266,0.05255113,145.53,145.51,6.91536985]
[1749911079565,0.05255113,145.53,145.51,0.04626985]
[1749911080671,0.05255113,145.53,145.52,6.8688]
[1749911082575,0.05255113,145.53,145.51,6.91536985]
[1749911083874,0.05255113,145.53,145.51,0.04626985]
[1749911084463,6.92085113,145.53,145.51,0.04626985]
[1749911084662,0.05255113,145.53,145.51,6.91536985]
[1749911086473,0.05255113,145.53,145.52,6.8688]
[1749911087174,0.05255113,145.53,145.51,6.91526985]
[1749911089475,0.05255113,145.53,145.51,0.04626985]
[1749911093881,0.05255113,145.53,145.51,3.36406186]
[1749911097782,6.92085113,145.53,145.51,3.36406186]
[1749911098083,0.05255113,145.53,145.51,10.23326186]
[1749911099284,0.05255113,145.53,145.51,6.91546985]
[1749911101487,0.05255113,145.53,145.52,6.8687]
[1749911101684,0.05255113,145.53,145.52,10.18649201]
[1749911114301,0.05255113,145.53,145.52,18.75283857]
[1749911115001,0.05255113,145.53,145.52,10.18649201]
[1749911115703,0.05255113,145.53,145.52,18.75283857]
[1749911118803,0.05255113,145.53,145.52,10.18649201]
[1749911122001,5.113e-05,145.53,145.52,10.18649201]
[1749911122205,2.372,145.61,145.53,6.874]
[1749911122412,2.288,145.63,145.58,3.31779201]
[1749911122613,12.46939201,145.63,145.59,3.31779201]
[1749911122912,12.46939201,145.63,145.59,10.18299201]
[1749911123101,0.05153537,145.62,145.6,0.04576725]
[1749911123306,6.91553537,145.62,145.6,0.04576725]
[1749911123611,10.23332738,145.62,145.6,0.04576725]
[1749911124315,6.91553537,145.62,145.6,0.04576725]
[1749911124507,6.91553537,145.62,145.61,3.31779201]
[1749911124508,0.05153537,145.62,145.61,3.31779201]
[1749911125708,0.05153537,145.62,145.61,10.18229201]
[1749911132626,0.05153537,145.62,145.61,6.8645]
[1749911132813,0.05153537,145.62,145.61,10.18229201]
[1749911141322,2.3061,145.67,145.65,6.8623]
[1749911141520,5.60349201,145.7,145.66,3.31779201]
[1749911141721,7.31948819,145.69,145.66,3.31779201]
[1749911141932,4.64951712,145.68,145.66,3.31779201]
[1749911142139,12.46399201,145.7,145.66,10.17989201]
[1749911142340,7.3629313,145.69,145.67,0.04646926]
[1749911142628,4.6492498,145.68,145.67,0.04646926]
[1749911142833,6.90438138,145.69,145.67,0.04646926]
[1749911143025,4.64923687,145.68,145.67,0.04646926]
[1749911143536,0.04368138,145.69,145.67,0.04646926]
[1749911143831,0.04368138,145.69,145.67,3.36426127]
[1749911144634,0.04368138,145.69,145.67,10.22596127]
[1749911145241,0.04368138,145.69,145.68,10.17899201]
[1749911145428,4.69259042,145.69,145.68,10.17899201]
[1749911145933,0.04368138,145.69,145.68,10.17899201]
[1749911147237,0.04368138,145.69,145.68,12.03144602]
[1749911152743,0.04368138,145.69,145.67,0.04646926]
[1749911153043,0.04368138,145.69,145.66,33.7]
[1749911153245,6.8612,145.68,145.66,33.7]
[1749911153637,0.04368138,145.69,145.66,33.7]
[1749911154136,6.90468138,145.69,145.66,33.74829579]
[1749911154930,6.90468138,145.69,145.66,40.61039579]
[1749911155536,0.04368138,145.69,145.68,6.8612]
[1749911155841,0.04368138,145.69,145.68,12.03144602]
[1749911158742,0.04368138,145.69,145.67,6.8615]
[1749911159139,0.04368138,145.69,145.66,33.74829579]
[1749911159339,6.90468138,145.69,145.66,33.74829579]
[1749911159946,6.90468138,145.69,145.66,40.61019579]
[1749911160143,0.04368138,145.69,145.66,33.74829579]
[1749911161450,0.04368138,145.69,145.67,6.8616]
[1749911161750,0.04368138,145.69,145.66,38.91854181]
[1749911162050,0.04368138,145.69,145.67,6.8617]
[1749911163652,0.04368138,145.69,145.66,33.74829579]
[1749911163853,6.90468138,145.69,145.66,33.74829579]
[1749911164254,0.04368138,145.69,145.66,33.74829579]
[1749911165446,0.04368138,145.69,145.67,6.8616]
[1749911165646,0.04368138,145.69,145.66,33.74829579]
[1749911166349,0.04368138,145.69,145.67,6.8613]
[1749911167471,0.04368138,145.69,145.68,6.8612]